[Event "*** Titled Tuesday Blitz"]
[Site "Chess.com"]
[Date "2020.04.28"]
[Round "5"]
[White "abhidabhi"]
[Black "Tashik"]
[Result "1-0"]
[WhiteElo "2758"]
[BlackElo "2542"]
[TimeControl "180+1"]
[EndTime "10:55:45 PDT"]
[Termination "abhidabhi won by resignation"]

1. Nf3 {[%clk 0:03:00.9]} 1... d5 {[%clk 0:02:59.5]} 2. g3 {[%clk 0:03:00.5]}
2... Nf6 {[%clk 0:02:59.4]} 3. Bg2 {[%clk 0:03:00.9]} 3... Nbd7 {[%clk
0:02:58.7]} 4. O-O {[%clk 0:03:00.5]} 4... e5 {[%clk 0:02:57.8]} 5. d3 {[%clk
0:03:00.7]} 5... Bd6 {[%clk 0:02:57.3]} 6. Nbd2 {[%clk 0:02:58.3]} 6... O-O
{[%clk 0:02:56.2]} 7. e4 {[%clk 0:02:58.3]} 7... c6 {[%clk 0:02:56.4]} 8. a4
{[%clk 0:02:47.1]} 8... a5 {[%clk 0:02:51.5]} 9. Nh4 {[%clk 0:02:45.9]} 9... Re8
{[%clk 0:02:51.4]} 10. Kh1 {[%clk 0:02:42.9]} 10... Nc5 {[%clk 0:02:41.7]} 11.
b3 {[%clk 0:02:22]} 11... Bg4 {[%clk 0:02:32.1]} 12. f3 {[%clk 0:02:18.5]} 12...
Be6 {[%clk 0:02:31.4]} 13. Bb2 {[%clk 0:02:16.6]} 13... Qc7 {[%clk 0:02:03.8]}
14. Qe2 {[%clk 0:01:57.6]} 14... Rad8 {[%clk 0:01:58.1]} 15. Rae1 {[%clk
0:01:55.3]} 15... Bc8 {[%clk 0:01:55.3]} 16. Qd1 {[%clk 0:01:54]} 16... b5
{[%clk 0:01:33.6]} 17. axb5 {[%clk 0:01:53.2]} 17... cxb5 {[%clk 0:01:34.5]} 18.
exd5 {[%clk 0:01:25.3]} 18... Nxd5 {[%clk 0:01:32.7]} 19. f4 {[%clk 0:01:24.9]}
19... Nb4 {[%clk 0:00:54]} 20. fxe5 {[%clk 0:01:07.1]} 20... Bxe5 {[%clk
0:00:50.5]} 21. Rxe5 {[%clk 0:01:02.8]} 21... Rxe5 {[%clk 0:00:49.5]} 22. d4
{[%clk 0:00:58]} 22... Red5 {[%clk 0:00:39.1]} 23. Bxd5 {[%clk 0:00:37.8]} 23...
Nxd5 {[%clk 0:00:40]} 24. Qf3 {[%clk 0:00:26.5]} 24... Bb7 {[%clk 0:00:36.6]}
25. Kg1 {[%clk 0:00:19]} 25... Nb4 {[%clk 0:00:25.9]} 26. Qe2 {[%clk 0:00:15.8]}
26... Ne6 {[%clk 0:00:24]} 27. c3 {[%clk 0:00:15.1]} 27... Nd5 {[%clk
0:00:19.9]} 28. c4 {[%clk 0:00:14.3]} 28... bxc4 {[%clk 0:00:17]} 29. bxc4
{[%clk 0:00:15]} 29... Nb4 {[%clk 0:00:15.7]} 30. d5 {[%clk 0:00:15.3]} 30...
Qb6+ {[%clk 0:00:14.8]} 31. Rf2 {[%clk 0:00:10.5]} 31... Nc5 {[%clk 0:00:12.9]}
32. Nf5 {[%clk 0:00:10.6]} 32... Nbd3 {[%clk 0:00:11.7]} 33. Bd4 {[%clk
0:00:10]} 33... Nxf2 {[%clk 0:00:11.1]} 34. Qxf2 {[%clk 0:00:10.2]} 34... Qg6
{[%clk 0:00:07.4]} 35. Ne7+ {[%clk 0:00:10]} 35... Kh8 {[%clk 0:00:07.8]} 36.
Nxg6+ {[%clk 0:00:10.9]} 36... hxg6 {[%clk 0:00:08.7]} 37. Bxc5 {[%clk
0:00:10.5]} 1-0

[Event "*** Titled Tuesday Blitz"]
[Site "Chess.com"]
[Date "2020.04.28"]
[Round "5"]
[White "CraiggoryC"]
[Black "Kosche007"]
[Result "0-1"]
[WhiteElo "2070"]
[BlackElo "2308"]
[TimeControl "180+1"]
[EndTime "10:55:45 PDT"]
[Termination "Kosche007 won on time"]

1. e4 {[%clk 0:03:00.9]} 1... c6 {[%clk 0:02:59.2]} 2. Nf3 {[%clk 0:03:00.1]}
2... d5 {[%clk 0:03:00.1]} 3. e5 {[%clk 0:03:00.2]} 3... c5 {[%clk 0:02:58.3]}
4. d4 {[%clk 0:03:00]} 4... Bg4 {[%clk 0:02:55.1]} 5. dxc5 {[%clk 0:02:53.5]}
5... Nc6 {[%clk 0:02:52.7]} 6. Bb5 {[%clk 0:02:52.2]} 6... e6 {[%clk 0:02:49.6]}
7. c3 {[%clk 0:02:52]} 7... Bxc5 {[%clk 0:02:47.9]} 8. Bxc6+ {[%clk 0:02:51.6]}
8... bxc6 {[%clk 0:02:47.3]} 9. Qa4 {[%clk 0:02:51.9]} 9... Bxf3 {[%clk
0:02:14.9]} 10. Qxc6+ {[%clk 0:02:48.1]} 10... Kf8 {[%clk 0:02:10.4]} 11. Qxc5+
{[%clk 0:02:46.8]} 11... Ne7 {[%clk 0:02:10.5]} 12. gxf3 {[%clk 0:02:46.2]}
12... Rc8 {[%clk 0:02:08.9]} 13. Qa3 {[%clk 0:02:41]} 13... h6 {[%clk
0:02:06.6]} 14. Be3 {[%clk 0:02:26.2]} 14... Kg8 {[%clk 0:02:04.9]} 15. Rg1
{[%clk 0:02:06.7]} 15... Nf5 {[%clk 0:02:03.9]} 16. Nd2 {[%clk 0:01:51.6]} 16...
Qh4 {[%clk 0:01:56.6]} 17. O-O-O {[%clk 0:01:14.7]} 17... d4 {[%clk 0:01:51.8]}
18. Rg4 {[%clk 0:01:14.5]} 18... dxe3 {[%clk 0:01:26.1]} 19. Rxh4 {[%clk
0:01:11.7]} 19... exd2+ {[%clk 0:01:26.2]} 20. Rxd2 {[%clk 0:01:08.3]} 20...
Nxh4 {[%clk 0:01:26.1]} 21. Rd7 {[%clk 0:00:49.4]} 21... Nf5 {[%clk 0:01:20]}
22. Qxa7 {[%clk 0:00:42.9]} 22... Kh7 {[%clk 0:01:15.2]} 23. a3 {[%clk
0:00:26.4]} 23... Ra8 {[%clk 0:01:04.3]} 24. Qc5 {[%clk 0:00:21.6]} 24... Rhc8
{[%clk 0:00:58.1]} 25. Rc7 {[%clk 0:00:20.5]} 25... Rf8 {[%clk 0:00:48.8]} 26.
f4 {[%clk 0:00:19]} 26... Kg8 {[%clk 0:00:48]} 27. Kb1 {[%clk 0:00:15.2]} 27...
Rad8 {[%clk 0:00:45.5]} 28. Ka2 {[%clk 0:00:13.8]} 28... g6 {[%clk 0:00:39.7]}
29. a4 {[%clk 0:00:12.5]} 29... Rd2 {[%clk 0:00:35.6]} 30. Rc8 {[%clk
0:00:11.4]} 30... Rxc8 {[%clk 0:00:35.3]} 31. Qxc8+ {[%clk 0:00:11.3]} 31... Kg7
{[%clk 0:00:36.2]} 32. Qc5 {[%clk 0:00:10.4]} 32... Rd5 {[%clk 0:00:32.5]} 33.
Qb6 {[%clk 0:00:08.7]} 33... Rd2 {[%clk 0:00:28.2]} 34. a5 {[%clk 0:00:08.2]}
34... Ne7 {[%clk 0:00:28.3]} 35. a6 {[%clk 0:00:06.8]} 35... Nd5 {[%clk
0:00:28.4]} 36. Qb3 {[%clk 0:00:04.9]} 36... Nxf4 {[%clk 0:00:20.3]} 37. a7
{[%clk 0:00:03.8]} 37... Rd8 {[%clk 0:00:18.9]} 38. Qb7 {[%clk 0:00:03.2]} 38...
Nd3 {[%clk 0:00:12.6]} 0-1

[Event "*** Titled Tuesday Blitz"]
[Site "Chess.com"]
[Date "2020.04.28"]
[Round "5"]
[White "Titus369"]
[Black "DDTerziev04"]
[Result "0-1"]
[WhiteElo "2497"]
[BlackElo "2336"]
[TimeControl "180+1"]
[EndTime "10:55:46 PDT"]
[Termination "DDTerziev04 won by checkmate"]

1. e4 {[%clk 0:02:58.7]} 1... e6 {[%clk 0:02:59.6]} 2. d4 {[%clk 0:02:58]} 2...
d5 {[%clk 0:02:58.8]} 3. Nd2 {[%clk 0:02:58.4]} 3... c5 {[%clk 0:02:58.3]} 4.
Ngf3 {[%clk 0:02:58.2]} 4... Nc6 {[%clk 0:02:55.4]} 5. exd5 {[%clk 0:02:53.4]}
5... exd5 {[%clk 0:02:56.3]} 6. Bb5 {[%clk 0:02:52.4]} 6... cxd4 {[%clk
0:02:56.1]} 7. O-O {[%clk 0:02:51.8]} 7... Bd6 {[%clk 0:02:54.9]} 8. Nb3 {[%clk
0:02:50.3]} 8... Ne7 {[%clk 0:02:52.5]} 9. Nbxd4 {[%clk 0:02:47]} 9... Bg4
{[%clk 0:02:47.8]} 10. h3 {[%clk 0:02:41.8]} 10... Bh5 {[%clk 0:02:47.2]} 11.
Re1 {[%clk 0:02:32.8]} 11... O-O {[%clk 0:02:45.2]} 12. Bg5 {[%clk 0:02:31.5]}
12... Nxd4 {[%clk 0:02:20.8]} 13. Qxd4 {[%clk 0:02:24.6]} 13... f6 {[%clk
0:02:16.1]} 14. Bf4 {[%clk 0:02:15]} 14... Bxf3 {[%clk 0:02:11.8]} 15. gxf3
{[%clk 0:02:14.2]} 15... Bxf4 {[%clk 0:02:07.2]} 16. Qxf4 {[%clk 0:02:13.9]}
16... Ng6 {[%clk 0:02:03.3]} 17. Qf5 {[%clk 0:02:02.4]} 17... Ne5 {[%clk
0:01:57.8]} 18. Kg2 {[%clk 0:01:55.3]} 18... a6 {[%clk 0:01:49]} 19. Ba4 {[%clk
0:01:49.5]} 19... Kh8 {[%clk 0:01:30.7]} 20. Rad1 {[%clk 0:01:42.3]} 20... Qa5
{[%clk 0:01:23.4]} 21. Bb3 {[%clk 0:01:35.3]} 21... Rad8 {[%clk 0:01:22.4]} 22.
c3 {[%clk 0:01:21.9]} 22... Ng6 {[%clk 0:01:04.3]} 23. Kh1 {[%clk 0:01:11.7]}
23... Qb6 {[%clk 0:00:57.6]} 24. Rd2 {[%clk 0:01:05.4]} 24... Rfe8 {[%clk
0:00:37]} 25. Rg1 {[%clk 0:00:53.7]} 25... d4 {[%clk 0:00:25.3]} 26. cxd4 {[%clk
0:00:19.4]} 26... Rxd4 {[%clk 0:00:24.3]} 27. Rxd4 {[%clk 0:00:11.4]} 27... Qxd4
{[%clk 0:00:25.2]} 28. Rxg6 {[%clk 0:00:11.8]} 28... hxg6 {[%clk 0:00:14.1]} 29.
Qxg6 {[%clk 0:00:12.7]} 29... Re1+ {[%clk 0:00:13.3]} 30. Kg2 {[%clk 0:00:12.4]}
30... Qh4 {[%clk 0:00:11.4]} 31. f4 {[%clk 0:00:08.9]} 31... Qxf4 {[%clk
0:00:10.5]} 32. Qh5+ {[%clk 0:00:07.9]} 32... Qh6 {[%clk 0:00:10.4]} 33. Qf7
{[%clk 0:00:08.2]} 33... Qg5+ {[%clk 0:00:10.2]} 34. Kf3 {[%clk 0:00:08.3]}
34... Qf5+ {[%clk 0:00:09.1]} 35. Kg2 {[%clk 0:00:08.2]} 35... Qe4+ {[%clk
0:00:09.2]} 36. f3 {[%clk 0:00:03]} 36... Qe2+ {[%clk 0:00:08.9]} 37. Kg3 {[%clk
0:00:03.2]} 37... Rg1+ {[%clk 0:00:08.9]} 38. Kf4 {[%clk 0:00:03.5]} 38... Qe5#
{[%clk 0:00:08.7]} 0-1

[Event "*** Titled Tuesday Blitz"]
[Site "Chess.com"]
[Date "2020.04.28"]
[Round "5"]
[White "adiosabu"]
[Black "GasconJR"]
[Result "0-1"]
[WhiteElo "2410"]
[BlackElo "2589"]
[TimeControl "180+1"]
[EndTime "10:55:47 PDT"]
[Termination "GasconJR won on time"]

1. e4 {[%clk 0:03:00.9]} 1... e5 {[%clk 0:02:35.7]} 2. Nf3 {[%clk 0:02:59.4]}
2... Nc6 {[%clk 0:02:35.3]} 3. Bb5 {[%clk 0:02:59.9]} 3... Nf6 {[%clk
0:02:33.8]} 4. Qe2 {[%clk 0:02:52.2]} 4... Bc5 {[%clk 0:02:32.3]} 5. c3 {[%clk
0:02:50.3]} 5... O-O {[%clk 0:02:32.1]} 6. O-O {[%clk 0:02:47.3]} 6... Re8
{[%clk 0:02:32.5]} 7. d3 {[%clk 0:02:36]} 7... h6 {[%clk 0:02:29.2]} 8. a4
{[%clk 0:02:33.5]} 8... d5 {[%clk 0:02:26.3]} 9. b4 {[%clk 0:02:23]} 9... Bf8
{[%clk 0:02:25.4]} 10. a5 {[%clk 0:02:18]} 10... Bd7 {[%clk 0:02:00.5]} 11. Nbd2
{[%clk 0:02:03.8]} 11... Nd4 {[%clk 0:01:54.4]} 12. Nxd4 {[%clk 0:01:13.5]}
12... exd4 {[%clk 0:01:52.4]} 13. Bxd7 {[%clk 0:01:13.2]} 13... Qxd7 {[%clk
0:01:47.3]} 14. cxd4 {[%clk 0:01:05.7]} 14... Bxb4 {[%clk 0:01:45.2]} 15. e5
{[%clk 0:01:01.1]} 15... Bc3 {[%clk 0:01:31.3]} 16. Rb1 {[%clk 0:00:55]} 16...
Bxa5 {[%clk 0:01:27.1]} 17. Nb3 {[%clk 0:00:42.5]} 17... Bb6 {[%clk 0:01:25.6]}
18. f4 {[%clk 0:00:39.3]} 18... a5 {[%clk 0:01:12.3]} 19. Qf3 {[%clk 0:00:31.2]}
19... a4 {[%clk 0:01:01.5]} 20. Nc5 {[%clk 0:00:30.5]} 20... Bxc5 {[%clk
0:01:00.9]} 21. dxc5 {[%clk 0:00:30.7]} 21... Nh7 {[%clk 0:00:54.8]} 22. d4
{[%clk 0:00:30.7]} 22... Qf5 {[%clk 0:00:33.1]} 23. Rxb7 {[%clk 0:00:28.6]}
23... c6 {[%clk 0:00:33.3]} 24. Rb6 {[%clk 0:00:25.8]} 24... Nf8 {[%clk
0:00:26.7]} 25. Rxc6 {[%clk 0:00:22.7]} 25... Ne6 {[%clk 0:00:24.4]} 26. Qe3
{[%clk 0:00:22.9]} 26... Reb8 {[%clk 0:00:11.5]} 27. Rb6 {[%clk 0:00:11.8]}
27... g6 {[%clk 0:00:11.1]} 28. Ba3 {[%clk 0:00:10]} 28... Qc2 {[%clk 0:00:10]}
29. g3 {[%clk 0:00:08.3]} 29... Ng7 {[%clk 0:00:08.9]} 30. Rf2 {[%clk 0:00:05]}
30... Qc4 {[%clk 0:00:07.8]} 31. Qd2 {[%clk 0:00:02.1]} 31... Nf5 {[%clk
0:00:07.9]} 32. Rxb8+ {[%clk 0:00:01.9]} 32... Rxb8 {[%clk 0:00:07.8]} 0-1

[Event "*** Titled Tuesday Blitz"]
[Site "Chess.com"]
[Date "2020.04.28"]
[Round "5"]
[White "reniite"]
[Black "IsaacWiebe"]
[Result "0-1"]
[WhiteElo "1939"]
[BlackElo "2180"]
[TimeControl "180+1"]
[EndTime "10:55:48 PDT"]
[Termination "IsaacWiebe won by resignation"]

1. e4 {[%clk 0:03:00.9]} 1... e6 {[%clk 0:02:59.4]} 2. d4 {[%clk 0:02:57.3]}
2... d5 {[%clk 0:02:58.7]} 3. Nc3 {[%clk 0:02:57.1]} 3... Bb4 {[%clk 0:02:57.5]}
4. e5 {[%clk 0:02:56.5]} 4... c5 {[%clk 0:02:57.1]} 5. a3 {[%clk 0:02:55.3]}
5... Bxc3+ {[%clk 0:02:57.6]} 6. bxc3 {[%clk 0:02:56.2]} 6... Ne7 {[%clk
0:02:57.4]} 7. h4 {[%clk 0:02:50]} 7... Nbc6 {[%clk 0:02:55.2]} 8. h5 {[%clk
0:02:49.2]} 8... h6 {[%clk 0:02:54.6]} 9. Qg4 {[%clk 0:02:48.7]} 9... Nf5 {[%clk
0:02:39.5]} 10. Bd3 {[%clk 0:02:38.6]} 10... Nce7 {[%clk 0:02:38.1]} 11. Nf3
{[%clk 0:02:36.2]} 11... c4 {[%clk 0:02:37.5]} 12. Be2 {[%clk 0:02:34.8]} 12...
Qa5 {[%clk 0:02:32.1]} 13. Bd2 {[%clk 0:02:34]} 13... Qa4 {[%clk 0:02:31]} 14.
O-O {[%clk 0:02:28.2]} 14... Qxc2 {[%clk 0:02:27.1]} 15. Rab1 {[%clk 0:02:25.6]}
15... Qa4 {[%clk 0:02:22]} 16. Nh4 {[%clk 0:02:19.8]} 16... b6 {[%clk
0:02:10.4]} 17. Nxf5 {[%clk 0:02:05.4]} 17... Nxf5 {[%clk 0:02:11.3]} 18. Qf4
{[%clk 0:01:52.9]} 18... O-O {[%clk 0:01:45.6]} 19. g4 {[%clk 0:01:38.7]} 19...
Ne7 {[%clk 0:01:44.6]} 20. g5 {[%clk 0:01:36.2]} 20... hxg5 {[%clk 0:01:43.9]}
21. Qxg5 {[%clk 0:01:34.6]} 21... Nf5 {[%clk 0:01:43.1]} 22. Kh2 {[%clk
0:01:28.5]} 22... Qxa3 {[%clk 0:01:35.2]} 23. Rg1 {[%clk 0:00:57.2]} 23... Qe7
{[%clk 0:01:30.9]} 24. Qxe7 {[%clk 0:00:36.7]} 24... Nxe7 {[%clk 0:01:31.8]} 25.
Bh6 {[%clk 0:00:35.3]} 25... Nf5 {[%clk 0:01:30.8]} 26. Bxg7 {[%clk 0:00:35.5]}
26... Nxg7 {[%clk 0:01:30.7]} 27. h6 {[%clk 0:00:36.1]} 27... Kh7 {[%clk
0:01:29.6]} 28. Rxg7+ {[%clk 0:00:27.3]} 28... Kxh6 {[%clk 0:01:29.1]} 29. Rbg1
{[%clk 0:00:27.9]} 29... Bd7 {[%clk 0:01:25.9]} 30. Bd1 {[%clk 0:00:26.5]} 30...
a5 {[%clk 0:01:17.9]} 31. Bc2 {[%clk 0:00:25.3]} 31... Rh8 {[%clk 0:01:09.8]}
32. Rxf7 {[%clk 0:00:25.2]} 32... Raf8 {[%clk 0:00:50]} 33. Rxd7 {[%clk
0:00:19.8]} 33... Rxf2+ {[%clk 0:00:50.9]} 34. Rg2 {[%clk 0:00:20.5]} 34...
Rxg2+ {[%clk 0:00:50.9]} 35. Kxg2 {[%clk 0:00:21.4]} 35... Rg8+ {[%clk
0:00:51.2]} 36. Kf2 {[%clk 0:00:21.6]} 36... Rf8+ {[%clk 0:00:51]} 37. Ke2
{[%clk 0:00:21.7]} 37... Rf4 {[%clk 0:00:43.1]} 38. Rb7 {[%clk 0:00:21.2]} 38...
Rh4 {[%clk 0:00:41.5]} 39. Rxb6 {[%clk 0:00:21]} 39... Rh2+ {[%clk 0:00:42.2]}
40. Kd1 {[%clk 0:00:21.2]} 40... Kg5 {[%clk 0:00:42.2]} 41. Rxe6 {[%clk
0:00:20.3]} 41... Kf4 {[%clk 0:00:42.8]} 42. Rf6+ {[%clk 0:00:20.9]} 42... Ke3
{[%clk 0:00:42.7]} 43. Kc1 {[%clk 0:00:21.5]} 43... a4 {[%clk 0:00:41.4]} 44.
Kb2 {[%clk 0:00:21.8]} 44... a3+ {[%clk 0:00:41]} 45. Kxa3 {[%clk 0:00:22.2]}
45... Rxc2 {[%clk 0:00:39.9]} 46. e6 {[%clk 0:00:23]} 46... Rxc3+ {[%clk
0:00:39.9]} 47. Kb4 {[%clk 0:00:23.9]} 47... Rb3+ {[%clk 0:00:40.2]} 48. Kc5
{[%clk 0:00:24.4]} 48... Rb7 {[%clk 0:00:40.8]} 49. Rf7 {[%clk 0:00:24.3]} 49...
c3 {[%clk 0:00:37.8]} 50. Re7 {[%clk 0:00:22.7]} 50... c2 {[%clk 0:00:38.7]} 51.
Kxd5 {[%clk 0:00:22.4]} 51... Rxe7 {[%clk 0:00:37.3]} 52. Kd6 {[%clk 0:00:22.5]}
52... Rxe6+ {[%clk 0:00:37.1]} 53. Kxe6 {[%clk 0:00:23.4]} 53... c1=Q {[%clk
0:00:37.2]} 54. d5 {[%clk 0:00:23.8]} 54... Qc8+ {[%clk 0:00:37.1]} 55. Ke7
{[%clk 0:00:23.5]} 55... Qc7+ {[%clk 0:00:37.5]} 56. Ke6 {[%clk 0:00:24]} 56...
Qd8 {[%clk 0:00:37.5]} 57. d6 {[%clk 0:00:24.2]} 57... Kd4 {[%clk 0:00:38.4]}
58. d7 {[%clk 0:00:24.7]} 58... Kc5 {[%clk 0:00:39.3]} 0-1

[Event "*** Titled Tuesday Blitz"]
[Site "Chess.com"]
[Date "2020.04.28"]
[Round "5"]
[White "lupta_robin"]
[Black "ChrisTool2"]
[Result "1-0"]
[WhiteElo "2548"]
[BlackElo "2380"]
[TimeControl "180+1"]
[EndTime "10:55:49 PDT"]
[Termination "lupta_robin won on time"]

1. b3 {[%clk 0:03:00.9]} 1... Nf6 {[%clk 0:02:57.8]} 2. Bb2 {[%clk 0:02:59.6]}
2... d5 {[%clk 0:02:58.4]} 3. Nf3 {[%clk 0:02:59.2]} 3... Bf5 {[%clk 0:02:52.4]}
4. e3 {[%clk 0:02:58.9]} 4... e6 {[%clk 0:02:50.4]} 5. Be2 {[%clk 0:02:57.2]}
5... Bd6 {[%clk 0:02:49]} 6. O-O {[%clk 0:02:50]} 6... O-O {[%clk 0:02:48.7]} 7.
c4 {[%clk 0:02:46.7]} 7... c6 {[%clk 0:02:47.7]} 8. Nc3 {[%clk 0:02:46]} 8...
Nbd7 {[%clk 0:02:39.3]} 9. d4 {[%clk 0:02:42.7]} 9... h6 {[%clk 0:02:37.9]} 10.
h3 {[%clk 0:02:37.4]} 10... Re8 {[%clk 0:02:35.4]} 11. a3 {[%clk 0:02:32]} 11...
Qc7 {[%clk 0:02:27.3]} 12. Rc1 {[%clk 0:02:26.4]} 12... dxc4 {[%clk 0:02:14]}
13. Bxc4 {[%clk 0:02:16.6]} 13... Rad8 {[%clk 0:02:08.5]} 14. Qe2 {[%clk
0:02:04.4]} 14... e5 {[%clk 0:02:01.6]} 15. d5 {[%clk 0:01:59]} 15... e4 {[%clk
0:01:29.1]} 16. Nd4 {[%clk 0:01:56.5]} 16... Bg6 {[%clk 0:01:29]} 17. dxc6
{[%clk 0:01:49.3]} 17... bxc6 {[%clk 0:01:28.6]} 18. Ncb5 {[%clk 0:01:39.6]}
18... cxb5 {[%clk 0:01:17.1]} 19. Bxf7+ {[%clk 0:01:33.9]} 19... Bxf7 {[%clk
0:01:16.8]} 20. Rxc7 {[%clk 0:01:33.9]} 20... Bxc7 {[%clk 0:01:16.7]} 21. Nxb5
{[%clk 0:01:32.2]} 21... Be5 {[%clk 0:01:12.3]} 22. Nxa7 {[%clk 0:01:19.3]}
22... Bxb2 {[%clk 0:01:02.5]} 23. Qxb2 {[%clk 0:01:17.5]} 23... Ne5 {[%clk
0:01:03.1]} 24. Nb5 {[%clk 0:01:14]} 24... Nd3 {[%clk 0:00:58.8]} 25. Qb1 {[%clk
0:01:05.4]} 25... Rb8 {[%clk 0:00:38.8]} 26. Nd4 {[%clk 0:00:59.4]} 26... Nd5
{[%clk 0:00:33]} 27. Qa1 {[%clk 0:00:53.5]} 27... Rb7 {[%clk 0:00:22.1]} 28. Nf5
{[%clk 0:00:45.5]} 28... Nf6 {[%clk 0:00:14.3]} 29. Nd6 {[%clk 0:00:42.2]} 29...
Reb8 {[%clk 0:00:14.7]} 30. Nxb7 {[%clk 0:00:39.6]} 30... Rxb7 {[%clk
0:00:15.6]} 31. b4 {[%clk 0:00:39.4]} 31... Bc4 {[%clk 0:00:13.9]} 32. Qd4
{[%clk 0:00:36.9]} 32... Bb5 {[%clk 0:00:10.1]} 33. Ra1 {[%clk 0:00:35.9]} 33...
Rd7 {[%clk 0:00:08.7]} 34. Qb6 {[%clk 0:00:35.6]} 34... Bc4 {[%clk 0:00:06.5]}
35. a4 {[%clk 0:00:34]} 35... Nd5 {[%clk 0:00:07]} 36. Qb8+ {[%clk 0:00:32.7]}
36... Kh7 {[%clk 0:00:07.2]} 37. b5 {[%clk 0:00:32.6]} 37... Rf7 {[%clk
0:00:07.3]} 38. Qg3 {[%clk 0:00:20.4]} 38... Nc3 {[%clk 0:00:07]} 39. Kh2 {[%clk
0:00:15.3]} 39... Rxf2 {[%clk 0:00:05.3]} 40. b6 {[%clk 0:00:14.5]} 40... Ne2
{[%clk 0:00:03.8]} 41. Qg4 {[%clk 0:00:13.4]} 1-0

[Event "*** Titled Tuesday Blitz"]
[Site "Chess.com"]
[Date "2020.04.28"]
[Round "5"]
[White "davigator"]
[Black "troisi"]
[Result "1-0"]
[WhiteElo "2391"]
[BlackElo "2147"]
[TimeControl "180+1"]
[EndTime "10:55:50 PDT"]
[Termination "davigator won by resignation"]

1. e4 {[%clk 0:03:00.9]} 1... e5 {[%clk 0:02:59.7]} 2. Nf3 {[%clk 0:03:00.7]}
2... Nc6 {[%clk 0:02:59.5]} 3. Bb5 {[%clk 0:03:00.6]} 3... a6 {[%clk 0:02:59.8]}
4. Ba4 {[%clk 0:03:00.1]} 4... Nf6 {[%clk 0:03:00]} 5. O-O {[%clk 0:02:59.3]}
5... b5 {[%clk 0:03:00]} 6. Bb3 {[%clk 0:02:58.9]} 6... Bc5 {[%clk 0:03:00.6]}
7. c3 {[%clk 0:02:58]} 7... d6 {[%clk 0:03:00.1]} 8. d4 {[%clk 0:02:57.7]} 8...
Bb6 {[%clk 0:02:59.1]} 9. a4 {[%clk 0:02:57.8]} 9... Bb7 {[%clk 0:02:58.6]} 10.
Re1 {[%clk 0:02:56.1]} 10... h6 {[%clk 0:02:57.2]} 11. Na3 {[%clk 0:02:54.3]}
11... O-O {[%clk 0:02:52.4]} 12. axb5 {[%clk 0:02:42.3]} 12... axb5 {[%clk
0:02:51.8]} 13. d5 {[%clk 0:02:42.3]} 13... Ne7 {[%clk 0:02:31.8]} 14. Be3
{[%clk 0:02:42]} 14... c6 {[%clk 0:02:28.6]} 15. c4 {[%clk 0:02:32.7]} 15... b4
{[%clk 0:02:21.6]} 16. Nc2 {[%clk 0:02:31.8]} 16... Bxe3 {[%clk 0:02:19.3]} 17.
Nxe3 {[%clk 0:02:28.4]} 17... c5 {[%clk 0:02:17.7]} 18. Ba4 {[%clk 0:02:28]}
18... Qc7 {[%clk 0:02:10.2]} 19. Bc2 {[%clk 0:02:18.2]} 19... Ng6 {[%clk
0:01:56.8]} 20. Nf5 {[%clk 0:02:17.2]} 20... Rfb8 {[%clk 0:01:53.2]} 21. g3
{[%clk 0:02:15.7]} 21... Bc8 {[%clk 0:01:51.3]} 22. N5h4 {[%clk 0:02:09]} 22...
Bg4 {[%clk 0:01:45.5]} 23. Qd3 {[%clk 0:02:08.4]} 23... Qd7 {[%clk 0:01:42.5]}
24. Nxg6 {[%clk 0:02:05.5]} 24... fxg6 {[%clk 0:01:43.4]} 25. Nd2 {[%clk
0:02:04.3]} 25... g5 {[%clk 0:01:40.8]} 26. f3 {[%clk 0:02:04.2]} 26... Bh5
{[%clk 0:01:40.5]} 27. Kg2 {[%clk 0:02:01.1]} 27... Bg6 {[%clk 0:01:40]} 28. Qb3
{[%clk 0:01:55.6]} 28... Kh7 {[%clk 0:01:37.3]} 29. Ra4 {[%clk 0:01:51.3]} 29...
h5 {[%clk 0:01:24.2]} 30. Rea1 {[%clk 0:01:45.9]} 30... Qb7 {[%clk 0:01:22.9]}
31. Ra5 {[%clk 0:01:43.4]} 31... Rxa5 {[%clk 0:01:19]} 32. Rxa5 {[%clk
0:01:42.3]} 32... Ra8 {[%clk 0:01:16.3]} 33. Qa4 {[%clk 0:01:42]} 33... Rxa5
{[%clk 0:01:16.2]} 34. Qxa5 {[%clk 0:01:42]} 34... Be8 {[%clk 0:01:15.5]} 35.
Qd8 {[%clk 0:01:40.9]} 35... Qd7 {[%clk 0:01:14.7]} 36. Qb8 {[%clk 0:01:38.9]}
36... h4 {[%clk 0:01:08.5]} 37. Nf1 {[%clk 0:01:38.1]} 37... h3+ {[%clk
0:01:07.1]} 38. Kf2 {[%clk 0:01:37.5]} 38... Bh5 {[%clk 0:01:03.3]} 39. Ne3
{[%clk 0:01:36.7]} 39... Bg6 {[%clk 0:00:58.6]} 40. g4 {[%clk 0:01:26.8]} 40...
Qe7 {[%clk 0:00:52.9]} 41. Ba4 {[%clk 0:01:23.3]} 41... Be8 {[%clk 0:00:46.6]}
42. Bxe8 {[%clk 0:01:22.9]} 42... Nxe8 {[%clk 0:00:47.5]} 43. Nf5 {[%clk
0:01:22.4]} 43... Qd7 {[%clk 0:00:47.5]} 44. Kg3 {[%clk 0:01:22.2]} 44... g6
{[%clk 0:00:46.6]} 45. Ne3 {[%clk 0:01:20]} 45... Nf6 {[%clk 0:00:46.1]} 46.
Kxh3 {[%clk 0:01:17.9]} 46... Nh5 {[%clk 0:00:46.3]} 47. Ng2 {[%clk 0:01:13.8]}
47... Nf4+ {[%clk 0:00:45.3]} 48. Nxf4 {[%clk 0:01:13.7]} 48... gxf4 {[%clk
0:00:43.4]} 49. Qf8 {[%clk 0:01:12.3]} 49... Qc7 {[%clk 0:00:41.1]} 50. Kh4
{[%clk 0:01:10.4]} 50... b3 {[%clk 0:00:30.3]} 51. Kg5 {[%clk 0:01:09.8]} 51...
Qb7 {[%clk 0:00:02.7]} 52. Qh6+ {[%clk 0:01:07.3]} 52... Kg8 {[%clk 0:00:02.7]}
53. Qxg6+ {[%clk 0:01:07.6]} 53... Kh8 {[%clk 0:00:03.6]} 54. Kh6 {[%clk
0:01:05.4]} 54... Qf7 {[%clk 0:00:03]} 55. h4 {[%clk 0:00:56.4]} 55... Qxg6+
{[%clk 0:00:02.9]} 56. Kxg6 {[%clk 0:00:56]} 56... Kg8 {[%clk 0:00:03.8]} 57.
Kf6 {[%clk 0:00:56.2]} 57... Kh8 {[%clk 0:00:04.7]} 58. Ke6 {[%clk 0:00:56.6]}
58... Kg8 {[%clk 0:00:05.6]} 59. Kxd6 {[%clk 0:00:57.1]} 59... Kf7 {[%clk
0:00:06.3]} 60. Kxe5 {[%clk 0:00:57.2]} 60... Kg6 {[%clk 0:00:07.2]} 61. Kxf4
{[%clk 0:00:57.3]} 1-0